bitfinex/quotes_SOLUSD_20250918
["timestamp","ask_amount","ask_price","bid_price","bid_amount"]
[1758164361718,0.1,246.59,246.52,31.52]
[1758164361719,0.66,246.56,246.52,35.57639309]
[1758164361910,0.66,246.55,246.52,35.57639309]
[1758164363600,0.66,246.57,246.52,36.26639309]
[1758164363808,0.1,246.59,246.52,36.26639309]
[1758164363809,0.66,246.56,246.52,35.57639309]
[1758164364117,0.66,246.55,246.52,35.57639309]
[1758164365508,0.66,246.54,246.52,31.52]
[1758164365698,4.15539866,246.59,246.52,31.52]
[1758164365900,0.66,246.58,246.52,31.52]
[1758164366217,0.66,246.57,246.52,31.52]
[1758164366403,0.66,246.56,246.52,31.52]
[1758164366607,0.66,246.55,246.52,31.52]
[1758164367401,0.66,246.54,246.49,0.28432314]
[1758164367599,0.66,246.53,246.5,31.52]
[1758164369502,0.66,246.53,246.49,0.14216157]
[1758164369708,0.66,246.52,246.5,31.52]
[1758164370001,6.78665483,246.58,246.5,31.52]
[1758164370214,0.66,246.57,246.51,0.28432314]
[1758164370425,0.66,246.57,246.52,31.52]
[1758164370627,0.66,246.57,246.53,0.69]
[1758164370844,0.66,246.56,246.52,31.52]
[1758164371002,0.1,246.59,246.52,31.52]
[1758164371318,0.66,246.58,246.52,32.21]
[1758164371502,0.66,246.58,246.53,4.05630146]
[1758164371705,0.66,246.57,246.53,4.74630146]
[1758164372100,0.76,246.59,246.53,4.05630146]
[1758164372399,0.76,246.59,246.53,4.74630146]
[1758164372604,0.76,246.59,246.54,0.97432314]
[1758164372902,0.72,246.58,246.55,31.52]
[1758164374020,0.72,246.57,246.55,31.52]
[1758164374212,0.72,246.56,246.55,31.52]
[1758164374522,0.72,246.58,246.55,31.52]
[1758164375030,0.72,246.57,246.55,31.52]
[1758164375904,0.06,246.56,246.55,31.52]
[1758164377726,0.06,246.56,246.55,31.5]
[1758164378103,0.06,246.56,246.55,32.17]
[1758164378627,0.06,246.56,246.55,31.5]
[1758164382307,0.06,246.56,246.54,4.05608099]
[1758164382523,0.06,246.56,246.55,31.5]
[1758164385028,0.06,246.56,246.54,4.05608099]
[1758164385227,0.06,246.56,246.55,31.5]
[1758164385855,0.78,246.56,246.55,31.5]
[1758164386542,0.78,246.56,246.52,0.28432314]
[1758164386722,0.72,246.55,246.53,31.5]
[1758164386928,0.72,246.55,246.54,31.5]
[1758164388021,0.72,246.55,246.5,0.95432314]
[1758164388221,0.72,246.55,246.52,0.28432314]
[1758164389139,0.72,246.55,246.53,31.5]
[1758164391352,0.72,246.54,246.49,0.28432314]
[1758164391651,0.72,246.54,246.48,0.03]
[1758164391952,0.72,246.54,246.49,31.5]
[1758164392255,0.72,246.54,246.49,32.17]
[1758164392546,0.72,246.54,246.49,31.5]
[1758164392728,0.72,246.54,246.5,0.67]
[1758164394136,0.72,246.54,246.51,31.48]
[1758164395929,0.78,246.56,246.51,31.48]
[1758164396252,0.72,246.55,246.51,32.15]
[1758164396836,0.72,246.55,246.52,31.48]
[1758164397455,0.72,246.55,246.52,29.38668804]
[1758164398254,0.72,246.55,246.51,0.67]
[1758164398450,0.72,246.55,246.52,31.48]
[1758164399153,0.72,246.55,246.51,0.67]
[1758164399654,0.68,246.55,246.52,31.48]
[1758164399954,4.11582846,246.56,246.53,31.48]
[1758164400154,0.68,246.55,246.54,31.48]
[1758164400348,0.68,246.55,246.5,0.66]
[1758164400545,0.68,246.55,246.51,32.14]
[1758164400753,4.11582846,246.56,246.52,31.48]
[1758164400960,0.74,246.56,246.52,31.48]
[1758164401139,0.06,246.56,246.53,0.66]
[1758164401451,0.06,246.56,246.54,31.48]
[1758164401660,0.06,246.56,246.55,31.48]
[1758164402956,0.06,246.56,246.55,32.13]
[1758164403368,0.06,246.56,246.55,31.48]
[1758164403532,0.06,246.56,246.55,32.13]
[1758164403932,0.06,246.56,246.53,4.70622152]
[1758164404136,0.06,246.56,246.54,32.13]
[1758164404557,0.06,246.56,246.55,0.93432314]
[1758164406860,0.06,246.56,246.55,0.65]
[1758164407966,0.06,246.56,246.55,32.13]
[1758164408138,0.06,246.56,246.55,0.65]
[1758164408341,0.06,246.56,246.55,32.13]
[1758164408963,0.06,246.56,246.55,32.41432314]
[1758164409272,0.06,246.56,246.55,57.76432314]
[1758164409446,0.06,246.56,246.55,57.48]
[1758164409747,0.06,246.56,246.55,58.13]
[1758164411948,0.06,246.56,246.53,4.7062459]
[1758164412139,0.06,246.56,246.54,31.48]
[1758164412739,0.06,246.56,246.55,31.46]
[1758164413160,0.06,246.56,246.55,32.11]
[1758164415359,0.06,246.56,246.55,0.65]
[1758164415547,0.06,246.56,246.55,32.11]
[1758164415850,0.06,246.56,246.52,30.73632869]
[1758164416046,0.71,246.56,246.53,31.46]
[1758164416556,0.71,246.56,246.52,4.73632869]
[1758164416750,0.71,246.56,246.53,31.46]
[1758164416944,0.06,246.56,246.53,35.51623319]
[1758164417153,0.06,246.56,246.53,4.70623319]
[1758164417349,0.06,246.56,246.54,31.46]
[1758164417967,0.06,246.56,246.55,0.65]
[1758164418152,0.06,246.56,246.55,32.11]
[1758164418964,0.06,246.56,246.55,4.70597241]
[1758164419165,0.06,246.56,246.55,36.16597241]
[1758164419877,0.06,246.56,246.55,4.70597241]
[1758164420058,0.06,246.56,246.55,36.16597241]
[1758164420772,0.06,246.56,246.55,35.51597241]
[1758164422658,0.71,246.56,246.52,0.03]
[1758164422862,0.71,246.56,246.53,31.46]
[1758164423074,0.65,246.55,246.53,31.46]
[1758164423273,0.06,246.56,246.53,32.11]
[1758164423462,0.65,246.55,246.52,0.03]
[1758164423663,0.06,246.56,246.52,0.03]
[1758164423860,2.62421714,246.54,246.52,0.03]
[1758164424062,28.73139414,246.53,246.52,0.03]
[1758164424366,48.35750675,246.53,246.52,0.03]
[1758164424561,49.00750675,246.53,246.52,0.03]
[1758164426876,35.41191274,246.53,246.52,0.03]
[1758164427076,26.71,246.56,246.52,0.03]
[1758164427287,0.71,246.56,246.52,31.49]
[1758164427880,0.06,246.56,246.52,31.49]
[1758164428067,0.65,246.55,246.52,31.49]
[1758164428388,0.65,246.54,246.52,31.49]
[1758164428567,0.65,246.53,246.52,31.49]
[1758164429465,0.65,246.55,246.52,31.49]
[1758164429667,0.65,246.54,246.52,31.49]
[1758164429868,8.10731102,246.56,246.53,31.46]
[1758164430095,8.10731102,246.56,246.52,0.03]
[1758164430390,0.65,246.55,246.52,31.49]
[1758164430768,0.65,246.54,246.52,31.49]
[1758164430968,0.65,246.53,246.52,31.49]
[1758164431378,1.9137661,246.53,246.52,31.49]
[1758164431679,1.9137661,246.53,246.52,0.03]
[1758164432391,15.50936011,246.53,246.52,0.03]
[1758164432578,18.23697932,246.53,246.52,0.03]
[1758164435088,3.37761921,246.53,246.52,0.03]
[1758164435271,27.9137661,246.53,246.52,0.03]
[1758164436071,0.72,246.53,246.52,0.03]
[1758164436679,30.05625902,246.54,246.52,0.03]
[1758164436892,4.05625902,246.54,246.52,0.03]
[1758164437283,15.57936011,246.53,246.52,0.03]
[1758164437488,18.30455779,246.53,246.52,0.03]
[1758164437893,4.70896378,246.53,246.52,0.03]
[1758164438101,1.9837661,246.53,246.52,0.03]
[1758164439600,5.37961133,246.56,246.52,0.03]
[1758164440176,0.72,246.55,246.52,0.03]
[1758164440371,1.2637661,246.53,246.52,0.03]
[1758164440880,6.04006756,246.53,246.52,0.03]
[1758164442184,19.63566157,246.53,246.52,0.03]
[1758164442382,21.09570699,246.53,246.52,0.03]
[1758164442691,22.35947309,246.53,246.52,0.03]
[1758164443483,22.64379623,246.53,246.52,0.03]
[1758164443901,55.36756233,246.53,246.52,0.03]
[1758164444212,0.28432314,246.48,246.47,1e-08]
[1758164444414,49.32749477,246.48,246.47,1e-08]
[1758164444619,50.04749477,246.48,246.47,1e-08]
[1758164444906,55.72967748,246.48,246.47,1e-08]
[1758164445111,54.10461908,246.48,246.47,1e-08]
[1758164446194,39.87991715,246.46,246.43,0.03]
[1758164446397,43.86749477,246.46,246.43,0.03]
[1758164446601,44.58749477,246.46,246.43,0.03]
[1758164447120,48.64494831,246.46,246.43,0.03]
[1758164447705,80.10494831,246.46,246.43,0.03]
[1758164448010,46.51902064,246.46,246.43,0.03]
[1758164448185,36.23666078,246.51,246.43,0.03]
[1758164448383,14.85936011,246.49,246.45,0.71]
[1758164448604,1.2637661,246.5,246.45,0.71]
[1758164448881,14.85936011,246.5,246.46,0.68]
[1758164449084,40.85936011,246.5,246.46,0.68]
[1758164449284,14.85936011,246.5,246.46,0.68]
[1758164449584,14.85936011,246.5,246.47,0.68]
[1758164449800,14.85936011,246.5,246.45,0.71]
[1758164449999,18.91619891,246.5,246.45,0.71]
[1758164450201,1.2637661,246.47,246.45,0.03]
[1758164450598,27.2637661,246.47,246.45,0.03]
[1758164450804,15.57936011,246.46,246.45,0.03]
[1758164451102,19.63681365,246.46,246.45,0.03]
[1758164452006,26.0,246.47,246.45,0.03]
[1758164452190,27.3237661,246.5,246.45,0.71]
[1758164452391,26.0,246.49,246.45,0.71]
[1758164452583,26.06,246.5,246.45,0.71]
[1758164452782,27.3237661,246.5,246.45,0.71]
[1758164453011,28.0437661,246.5,246.45,0.71]
[1758164453508,27.3237661,246.5,246.45,0.71]
[1758164453707,26.0,246.49,246.46,0.68]
[1758164453898,27.3237661,246.5,246.45,0.03]
[1758164453899,28.0437661,246.5,246.45,0.03]
[1758164454203,1.2637661,246.48,246.45,0.03]
[1758164454987,1.2637661,246.47,246.45,0.03]
[1758164455187,1.9837661,246.47,246.45,0.03]
[1758164455915,0.06,246.5,246.46,0.68]
[1758164456288,0.06,246.5,246.45,0.03]
[1758164456488,0.06,246.5,246.47,0.68]
[1758164456908,0.06,246.5,246.48,0.68]
[1758164457107,0.06,246.5,246.49,0.68]
[1758164458521,0.06,246.5,246.47,4.73726018]
[1758164458693,0.06,246.5,246.48,0.69]
[1758164459394,0.06,246.5,246.49,0.69]
[1758164460901,0.06,246.5,246.49,4.74695971]
[1758164461292,0.06,246.5,246.49,0.69]
[1758164461608,0.06,246.5,246.45,0.72]
[1758164461912,1.2637661,246.46,246.45,0.03]
[1758164462112,15.51936011,246.46,246.45,0.03]
[1758164462814,19.57681365,246.46,246.45,0.03]
[1758164463203,22.29788811,246.46,246.45,0.03]
[1758164464692,16.97666847,246.46,246.45,0.03]
[1758164464897,1.2637661,246.46,246.45,0.03]
[1758164466103,13.59559401,246.48,246.45,0.03]
[1758164466304,1.2637661,246.46,246.45,0.03]
[1758164466711,1.2637661,246.48,246.45,0.03]
[1758164468311,26.0,246.49,246.45,0.03]
[1758164468520,27.2637661,246.49,246.45,0.7]
[1758164468731,26.0,246.49,246.46,0.67]
[1758164468915,1.3237661,246.5,246.46,0.67]
[1758164469924,26.0,246.47,246.45,0.03]
[1758164470123,17.58471845,246.46,246.45,0.03]
[1758164470326,18.25471845,246.46,246.45,0.03]
[1758164471509,50.99390887,246.46,246.45,0.03]
[1758164471703,56.95208138,246.46,246.45,0.03]
[1758164475328,25.51208138,246.46,246.45,0.03]
[1758164475821,56.95208138,246.46,246.45,0.03]
[1758164478137,56.95208138,246.46,246.44,1e-08]
[1758164478440,20.5003047,246.45,246.44,1e-08]
[1758164478604,13.59559401,246.44,246.4,0.03]
[1758164478929,47.10267907,246.41,246.4,0.03]
[1758164479112,81.26803741,246.41,246.4,0.03]
[1758164479311,46.3792292,246.41,246.4,0.03]
[1758164479513,50.21371427,246.41,246.4,0.03]
[1758164481254,42.32095235,246.41,246.4,0.03]
[1758164481430,42.76007908,246.41,246.4,0.03]
[1758164481627,42.76007908,246.41,246.4,0.7]
[1758164481823,42.76007908,246.41,246.4,0.03]
[1758164482053,39.59559401,246.41,246.4,0.03]
[1758164482225,42.76007908,246.41,246.4,0.03]
[1758164482547,3.16448507,246.41,246.4,0.7]
[1758164483138,3.16448507,246.41,246.4,0.03]
[1758164483742,16.76007908,246.41,246.4,0.03]
[1758164484321,42.76007908,246.41,246.4,0.03]
[1758164485641,29.16448507,246.41,246.4,0.7]
[1758164485827,29.16448507,246.41,246.4,0.03]
[1758164486027,42.76007908,246.41,246.4,0.03]
[1758164487344,43.43007908,246.41,246.4,0.03]
[1758164487722,42.76007908,246.41,246.4,0.03]
[1758164489335,43.43007908,246.41,246.4,0.03]
[1758164489533,51.89981576,246.41,246.4,0.03]
[1758164489740,59.18071703,246.41,246.4,0.03]
[1758164490427,54.46558729,246.41,246.4,0.03]
[1758164491547,59.18071703,246.41,246.4,0.03]
[1758164492635,54.46558729,246.41,246.4,0.03]
[1758164493654,49.75045755,246.41,246.4,0.03]
[1758164493853,53.70656217,246.41,246.4,0.03]
[1758164494853,51.05850986,246.41,246.4,0.03]
[1758164495057,16.32100755,246.41,246.4,0.03]
[1758164495241,18.29905986,246.41,246.4,0.03]
[1758164495553,16.32100755,246.41,246.4,0.03]
[1758164495750,18.29905986,246.41,246.4,0.03]
[1758164497145,42.32100755,246.41,246.4,0.03]
[1758164497355,18.29905986,246.41,246.4,0.03]
[1758164498070,18.95905986,246.41,246.4,0.03]
[1758164498233,50.41905986,246.41,246.4,0.03]
[1758164498649,51.43417271,246.41,246.4,0.03]
[1758164498850,53.69654816,246.41,246.4,0.03]
[1758164499159,53.69656936,246.41,246.4,0.03]
[1758164500737,53.69479113,246.41,246.4,0.03]
[1758164502942,53.69479113,246.41,246.38,0.03]
[1758164502943,39.59559401,246.39,246.38,1e-08]
[1758164503148,77.05673882,246.39,246.38,1e-08]
[1758164503349,77.71673882,246.39,246.38,1e-08]
[1758164504055,76.91457725,246.39,246.38,1e-08]
[1758164504356,45.45457725,246.39,246.38,1e-08]
[1758164504563,76.91457725,246.39,246.38,1e-08]
[1758164504746,77.05673882,246.39,246.38,1e-08]
[1758164505533,77.71673882,246.39,246.38,1e-08]
[1758164506054,77.05673882,246.39,246.38,1e-08]
[1758164509343,2.72363531,246.39,246.38,0.68000001]
[1758164509663,1.97805231,246.39,246.38,0.68000001]
[1758164509857,4.70168762,246.39,246.38,0.68000001]
[1758164511461,2.72363531,246.39,246.38,0.68000001]
[1758164511663,4.70168762,246.39,246.38,0.68000001]
[1758164511957,2.72363531,246.39,246.38,0.68000001]
[1758164512158,0.06,246.42,246.38,0.68000001]
[1758164512367,2.03805231,246.42,246.38,0.68000001]
[1758164512561,0.06,246.42,246.38,0.68000001]
[1758164512963,2.03805231,246.42,246.38,0.68000001]
[1758164513478,0.06,246.42,246.38,0.68000001]
[1758164513660,1.97805231,246.41,246.38,0.68000001]
[1758164514068,0.06,246.42,246.38,0.68000001]
[1758164514248,1.97805231,246.41,246.38,0.68000001]
[1758164514666,2.78363531,246.42,246.38,0.68000001]
[1758164515050,4.76168762,246.42,246.38,0.68000001]
[1758164515246,2.72363531,246.41,246.38,0.68000001]
[1758164515757,2.03805231,246.42,246.38,0.68000001]
[1758164515962,1.97805231,246.4,246.39,0.68]
[1758164516159,2.72363531,246.41,246.39,0.68]
[1758164516355,2.03805231,246.42,246.39,0.68]
[1758164516559,0.06,246.42,246.39,0.68]
[1758164517466,0.06,246.42,246.39,4.73857419]
[1758164517966,0.06,246.42,246.4,0.68]
[1758164518154,0.06,246.42,246.38,4.05874775]
[1758164518155,0.06,246.42,246.41,0.72]
[1758164519567,6.09622372,246.42,246.38,0.72000001]
[1758164519774,6.09622372,246.42,246.39,0.72]
[1758164519775,1.97805231,246.4,246.39,0.72]
[1758164519961,27.97805231,246.4,246.38,1e-08]
[1758164520166,1.97805231,246.39,246.38,0.72000001]
[1758164520472,1.97805231,246.39,246.38,1e-08]
[1758164520649,44.99405703,246.39,246.38,1e-08]
[1758164520850,46.00911642,246.39,246.38,1e-08]
[1758164521269,46.00958981,246.39,246.38,1e-08]
[1758164521573,50.06819608,246.39,246.38,1e-08]
[1758164522663,50.04819608,246.39,246.38,1e-08]
[1758164523073,53.74612435,246.39,246.38,1e-08]
[1758164523372,50.33251922,246.39,246.38,1e-08]
[1758164524478,81.77251922,246.39,246.38,1e-08]
[1758164525177,50.33251922,246.39,246.38,1e-08]
[1758164525361,81.77251922,246.39,246.38,1e-08]
[1758164526477,50.33251922,246.39,246.38,1e-08]
[1758164526676,85.18612435,246.39,246.38,1e-08]
[1758164527380,81.77251922,246.39,246.38,1e-08]
[1758164527783,26.0,246.36,246.35,0.03]
[1758164527963,77.04391295,246.36,246.35,0.03]
[1758164528280,81.77301345,246.36,246.35,0.03]
[1758164528779,81.10301345,246.36,246.35,0.03]
[1758164529279,81.77301345,246.36,246.35,0.03]
[1758164530481,49.66301345,246.36,246.35,0.03]
[1758164531055,31.7239958,246.36,246.35,0.69]
[1758164531477,45.31958981,246.36,246.35,0.03]
[1758164532382,43.3415375,246.36,246.35,0.69]
[1758164532558,2.7308841,246.36,246.35,0.69]
[1758164532758,1.97805231,246.37,246.35,0.69]
[1758164533061,1.97805231,246.37,246.36,0.66]
[1758164533465,4.70893641,246.37,246.36,0.66]
[1758164533667,4.70893641,246.37,246.35,0.03]
[1758164533865,1.97805231,246.36,246.35,0.03]
[1758164534257,4.70893641,246.37,246.35,0.03]
[1758164534488,1.97805231,246.36,246.35,0.03]
[1758164534794,19.98734999,246.36,246.35,0.03]
[1758164535286,19.31734999,246.36,246.35,0.03]
[1758164535765,18.30212435,246.36,246.35,0.03]
[1758164535966,22.36122485,246.36,246.35,0.03]
[1758164536177,23.03122485,246.36,246.35,0.03]
[1758164536378,24.04647786,246.36,246.35,0.03]
[1758164536687,23.37647786,246.36,246.35,0.03]
[1758164536985,8.76563084,246.36,246.35,0.03]
[1758164537687,0.06,246.45,246.35,0.69]
[1758164537893,1.97805231,246.36,246.35,0.03]
[1758164538073,41.57364632,246.36,246.35,0.03]
[1758164538268,44.30205381,246.36,246.35,0.03]
[1758164538466,48.36115431,246.36,246.35,0.03]
[1758164538887,48.36115431,246.36,246.35,0.69]
[1758164539078,48.36115431,246.36,246.35,0.03]
[1758164540091,49.03115431,246.36,246.35,0.03]
[1758164540389,48.36115431,246.36,246.35,0.03]
[1758164540863,50.33073844,246.36,246.35,0.03]
[1758164541276,49.66073844,246.36,246.35,0.03]
[1758164541488,49.3764153,246.36,246.35,0.03]
[1758164541784,51.09847988,246.36,246.35,0.03]
[1758164541986,51.09847988,246.36,246.35,0.69]
[1758164542485,51.09847988,246.36,246.35,0.03]
[1758164542674,37.50288587,246.36,246.35,0.69]
[1758164542874,33.44378537,246.36,246.35,0.69]
[1758164544090,0.06,246.37,246.35,0.69]
[1758164544677,0.06,246.37,246.35,4.74921383]
[1758164545073,0.06,246.37,246.36,0.66]
[1758164550083,0.06,246.37,246.36,0.80216157]
[1758164550384,0.06,246.37,246.36,0.94432314]
[1758164550692,0.06,246.37,246.36,32.14]
[1758164551075,0.06,246.37,246.36,0.66]
[1758164551876,0.06,246.37,246.35,0.03]
[1758164552099,0.06,246.37,246.36,0.66]
[1758164553493,0.06,246.37,246.35,0.03]
[1758164553684,0.06,246.37,246.35,0.74]
[1758164553999,0.06,246.37,246.36,0.71]
[1758164554793,0.06,246.37,246.36,32.19]
[1758164555197,0.06,246.37,246.35,31.51]
[1758164555698,0.75,246.37,246.35,31.51]
[1758164555885,0.06,246.37,246.35,31.51]
[1758164556493,0.06,246.37,246.35,32.22]
[1758164557386,0.06,246.37,246.36,0.71]
[1758164558397,0.06,246.37,246.35,0.03]
[1758164558398,0.75,246.37,246.35,0.03]
[1758164558594,3.16346317,246.36,246.35,0.03]
[1758164558981,4.80898347,246.37,246.35,0.03]
[1758164559177,3.16346317,246.36,246.35,0.03]
[1758164559577,3.85346317,246.36,246.35,0.03]
[1758164560901,0.06,246.37,246.35,0.03]
[1758164561609,3.85346317,246.36,246.35,0.03]
[1758164563908,15.55173566,246.36,246.35,0.03]
[1758164564110,18.2781564,246.36,246.35,0.03]
[1758164565705,18.56247954,246.36,246.35,0.03]
[1758164565906,19.57777475,246.36,246.35,0.03]
[1758164566800,3.99256239,246.36,246.35,0.03]
[1758164566999,4.68256239,246.36,246.35,0.03]
[1758164567809,3.99256239,246.36,246.35,0.03]
[1758164568313,4.68256239,246.36,246.35,0.03]
[1758164568486,3.99256239,246.36,246.35,0.03]
[1758164568693,1.32614165,246.37,246.35,0.74]
[1758164568891,1.32614165,246.37,246.35,0.03]
[1758164569116,4.05411612,246.37,246.35,0.03]
[1758164570089,1.26614165,246.36,246.35,0.03]
[1758164570287,1.95614165,246.36,246.35,0.03]
[1758164571005,6.84694818,246.37,246.35,0.03]
[1758164571307,1.26614165,246.36,246.35,0.03]
[1758164571687,15.55173566,246.36,246.35,0.03]
[1758164572007,18.27971013,246.36,246.35,0.03]
[1758164572722,1.26614165,246.36,246.35,0.03]
[1758164573816,0.06,246.37,246.35,0.74]
[1758164574118,0.06,246.37,246.36,0.71]
[1758164574491,0.06,246.37,246.35,0.03]
[1758164575114,1.32614165,246.37,246.35,0.03]
[1758164575311,1.26614165,246.36,246.35,0.03]
[1758164575708,1.32614165,246.37,246.35,0.74]
[1758164576020,0.06,246.37,246.36,0.71]
[1758164576606,0.06,246.37,246.35,0.03]
[1758164576913,0.06,246.37,246.35,0.74]
[1758164577113,1.32614165,246.37,246.35,0.74]
[1758164577295,0.06,246.37,246.35,0.03]
[1758164577499,0.06,246.37,246.36,0.71]
[1758164578512,0.06,246.37,246.36,32.17]
[1758164579413,0.06,246.37,246.36,32.16]
[1758164580297,0.06,246.37,246.36,31.46]
[1758164580498,0.06,246.37,246.36,32.16]
[1758164581621,0.06,246.37,246.36,0.7]
[1758164581819,0.06,246.37,246.36,32.16]
[1758164582324,0.06,246.37,246.36,36.2191005]
[1758164583926,0.06,246.37,246.35,0.03]
[1758164584108,0.06,246.37,246.36,31.46]
[1758164584611,0.06,246.37,246.36,32.16]
[1758164585116,0.06,246.37,246.36,31.46]
[1758164586228,0.06,246.37,246.36,31.48]
[1758164586725,0.06,246.37,246.35,0.03]
[1758164586726,6.0951635,246.37,246.35,0.03]
[1758164586927,1.97614165,246.36,246.35,0.03]
[1758164589818,15.57173566,246.36,246.35,0.03]
[1758164590140,18.30248517,246.36,246.35,0.03]
[1758164592139,28.73074951,246.36,246.35,0.03]
[1758164592430,2.73074951,246.36,246.35,0.73]
[1758164592634,0.06,246.37,246.35,0.73]
[1758164592810,2.79074951,246.37,246.35,0.73]
[1758164593309,2.79074951,246.37,246.35,0.03]
[1758164593511,0.06,246.37,246.35,0.03]
[1758164593816,0.06,246.37,246.35,0.73]
[1758164595332,0.06,246.37,246.35,0.03]
[1758164596236,1.32614165,246.37,246.35,0.03]
[1758164596436,1.97614165,246.36,246.35,0.03]
[1758164596935,0.06,246.37,246.35,0.03]
[1758164597133,1.26614165,246.36,246.35,0.03]
[1758164597528,1.32614165,246.37,246.35,0.03]
[1758164599020,6.09517563,246.37,246.35,0.03]
[1758164599331,1.97614165,246.36,246.35,0.03]
[1758164599631,1.26614165,246.36,246.35,0.03]
[1758164599810,1.97614165,246.36,246.35,0.03]
[1758164600734,4.70689116,246.36,246.35,0.03]
[1758164600930,1.97614165,246.36,246.35,0.03]
[1758164601139,1.26614165,246.36,246.35,0.03]
[1758164601738,0.06,246.37,246.35,0.03]
[1758164601938,1.26614165,246.36,246.35,0.03]
[1758164602127,1.32614165,246.37,246.35,0.03]
[1758164603436,0.06,246.37,246.35,0.03]
[1758164603742,0.06,246.37,246.36,0.7]
[1758164604225,0.06,246.37,246.36,4.7591005]
[1758164604623,0.06,246.37,246.36,0.7]
[1758164604937,0.06,246.37,246.35,0.03]
[1758164605626,0.77,246.37,246.35,0.03]
[1758164605936,0.06,246.37,246.36,31.44]
[1758164606628,0.06,246.37,246.36,32.14]
[1758164613138,1e-08,246.37,246.36,32.42432314]
[1758164613452,0.06,246.4,246.38,0.28432314]
[1758164613453,1e-08,246.4,246.38,0.28432314]
[1758164613651,1e-08,246.4,246.39,32.11]
[1758164613837,1e-08,246.4,246.39,32.39432314]
[1758164614033,1e-08,246.4,246.39,58.39432314]
[1758164614247,1e-08,246.42,246.41,39.87991715]
[1758164614551,1e-08,246.42,246.41,40.28574483]
[1758164614847,1e-08,246.42,246.41,40.95574483]
[1758164615049,1e-08,246.42,246.41,45.01402168]
[1758164616834,1e-08,246.45,246.44,26.28432314]
[1758164617034,1e-08,246.45,246.44,58.13010142]
[1758164617354,1e-08,246.45,246.44,62.85788424]
[1758164618242,0.06,246.46,246.44,62.85788424]
[1758164618243,0.06,246.53,246.45,13.87991715]
[1758164618571,1e-08,246.53,246.52,39.87991715]
[1758164618852,0.16,246.59,246.56,26.28432314]
[1758164619055,0.16,246.59,246.57,31.46]
[1758164619350,0.16,246.59,246.58,4.05547895]
[1758164619738,0.16,246.59,246.58,4.72547895]
[1758164622332,0.16,246.59,246.58,4.05547895]
[1758164622534,0.16,246.59,246.58,4.72547895]
[1758164623253,0.16,246.59,246.58,36.16547895]
[1758164623851,0.16,246.59,246.58,35.49547895]
[1758164624372,0.16,246.59,246.58,36.16547895]
[1758164625143,0.16,246.59,246.58,31.44]
[1758164625338,0.16,246.59,246.58,32.11]
[1758164626153,0.16,246.59,246.58,31.42]
[1758164626348,0.84,246.59,246.58,31.42]
[1758164626736,0.16,246.59,246.58,32.09]
[1758164631957,0.16,246.59,246.58,32.37432314]
[1758164636672,0.16,246.59,246.58,31.70432314]
[1758164636876,0.16,246.59,246.58,45.96991715]
[1758164637171,0.06,246.62,246.61,26.28432314]